Cogmind - Beta 13 @@@ ROGUE MODE // 2024.04.03 @ 18:18:34 Player: b00n1n Result: Destroyed by Y-45 Defender with Heavy Assault Rifle Performance ------------- Evolutions (2) 1000 Regions Visited (7) 1400 Robots Destroyed (35) 175 Value Destroyed (1262) 1262 Prototype IDs (0) 0 Alien Tech Used (0) 0 Bonus (500) 500 TOTAL SCORE: 4337 Bonus ------- Entered Garrisons 200 Aligned with FarCom 300 Cogmind --------- Core Integrity 0/550 Matter 300/300 Energy 36/100 System Corruption 0% Temperature Cool (41) Movement Walking (120) Location -8/Materials Parts ------- > --- POWER (2) -------- (None) > --- PROPULSION (4) --- Aluminum Leg Flight Unit > --- UTILITY (3) ------ (None) > --- WEAPON (2) ------- (None) > --- INVENTORY (5) ---- Light Nuclear Core Advanced Weight Redist. System ECM Suite Recalibrator Peak State ------------ > --- POWER ------------ Light Nuclear Core Light Nuclear Core > --- PROPULSION ------- Improved Medium Treads Improved Medium Treads Carbon-fiber Leg VSS Leg > --- UTILITY ---------- Improved Reaction Control System Phase Shifter Phase Shifter > --- WEAPON ----------- Gauss Rifle Heavy Machine Gun > --- INVENTORY -------- High-capacity Storage Unit Advanced Weight Redist. System ECM Suite Thermic Laser Thermic Laser [Rating: 47] Favorites ----------- Power Light Nuclear Core Engine Ion Engine Power Core Light Nuclear Core Propulsion Aluminum Leg Treads Improved Medium Treads Leg Aluminum Leg Wheel Wheel Hover Unit Airjet Flight Unit Flight Unit Utility ECM Suite Device ECM Suite Storage Small Battery Processor Targeting Computer Protection Improved Weapon Shielding Weapon EM Pulse Gun Energy Gun EM Pulse Gun Ballistic Gun Heavy Machine Gun Launcher Grenade Launcher Build | -11 -10 -10 -10 -9 -8 -8 -8 ------- Run | Yrd Mat Min Exi Min Mat Gar Mat Slots Evolved 4 | . . . . . 4 . . Power 1 | . . . . . 1 . . Propulsion 2 | . . . . . 2 . . Utility 1 | . . . . . 1 . . Weapon . | . . . . . . . . Parts Attached 105 | 8 27 . . . 12 35 23 Power 10 | 1 2 . . . 1 3 3 Engine 3 | 1 2 . . . . . . Core 7 | . . . . . 1 3 3 Reactor . | . . . . . . . . Propulsion 43 | 4 9 . . . 4 13 13 Treads 2 | . . . . . . 2 . Leg 36 | 2 8 . . . 4 11 11 Wheel 2 | 2 . . . . . . . Hover 1 | . . . . . . . 1 Flight 2 | . 1 . . . . . 1 Utility 26 | . 6 . . . 4 11 5 Device 17 | . 3 . . . 2 8 4 Storage 6 | . 3 . . . 1 2 . Processor 2 | . . . . . 1 1 . Hackware . | . . . . . . . . Protection 1 | . . . . . . . 1 Artifact . | . . . . . . . . Weapon 26 | 3 10 . . . 3 8 2 Energy Gun 17 | 2 9 . . . 1 4 1 Energy Cannon . | . . . . . . . . Ballistic Gun 6 | 1 . . . . . 4 1 Ballistic Cannon . | . . . . . . . . Launcher 3 | . 1 . . . 2 . . Special Weapon . | . . . . . . . . Impact Weapon . | . . . . . . . . Slashing Weapon . | . . . . . . . . Piercing Weapon . | . . . . . . . . Special Melee Weapon . | . . . . . . . . Unidentified Prototypes . | . . . . . . . . Parts Lost 32 | . . . . . 9 11 12 Power 5 | . . . . . 1 2 2 Propulsion 10 | . . . . . 3 3 4 Utility 9 | . . . . . 2 4 3 Weapon 8 | . . . . . 3 2 3 Highest Loss Streak 8 | . . . . . 8 4 7 To Critical Strikes . | . . . . . . . . Average Slot Usage (%) 92 | . 96 100 100 100 70 89 88 Engine 7 | . 14 14 14 14 2 . . Core 5 | . . . . . 6 13 12 Treads 1 | . . . . . . 6 . Leg 26 | . 25 28 28 28 21 27 27 Device 21 | . 15 28 28 28 16 19 15 Storage 2 | . 9 . . . 3 2 . Processor 2 | . . . . . 2 3 7 Energy Gun 17 | . 26 28 28 28 10 3 9 Ballistic Gun 4 | . . . . . . 12 7 Launcher 1 | . . . . . 6 1 . Naked Turns . | . . . . . . . . Heaviest Build 56 | 6 26 12 12 12 13 56 22 Greatest Support 61 | 20 20 20 20 20 41 61 55 Greatest Overweight (x) 3 | . 1 . . . . 3 1 Average Overweight (x) . | . . . . . . . . Largest Inventory Capacity 20 | 5 15 5 5 5 5 20 5 Average Capacity 5 | 5 7 5 5 5 5 5 5 Most Carried 9 | 5 9 5 5 5 4 5 5 Average Carried 4 | 2 5 5 5 4 1 4 4 Final Capacity 5 | 5 5 5 5 5 5 5 5 Final Carried 5 | 4 5 5 5 5 3 5 4 Class Distribution -------------------- 63% | Mutant 31% | Scavenger-Mutant 5% | Skirmisher Dominant Class ---------------- Mutant | -10/Materials Mutant | -10/Mines Mutant | -10/Exiles Skirmisher | -9/Mines Scavenger-Mutant | -8/Materials Scavenger-Mutant | -8/Garrison Scavenger-Mutant | -8/Materials Resources | -11 -10 -10 -10 -9 -8 -8 -8 ----------- Run | Yrd Mat Min Exi Min Mat Gar Mat Matter Collected 1559 | 285 247 . 50 . 111 524 342 Remotely . | . . . . . . . . Salvage Created 1344 | 33 197 . . . 142 535 437 Parts 73 | 1 16 . . . 8 25 23 Haulers Intercepted . | . . . . . . . . Recyclers Shooed 1 | . 1 . . . . . . Parts Field Recycled . | . . . . . . . . Retrieved Matter . | . . . . . . . . Parts Self-Destructed . | . . . . . . . . Prevented . | . . . . . . . . Kills | -11 -10 -10 -10 -9 -8 -8 -8 ------- Run | Yrd Mat Min Exi Min Mat Gar Mat Combat Hostiles Destroyed 32 | 1 9 . . . 3 11 8 Guns 28 | 1 9 . . . 3 8 7 AOE 2 | . . . . . . 2 . Classes Destroyed 8 | 1 1 . . . . 3 3 Builder 1 | . . . . . . . 1 Recycler 1 | . . . . . . . 1 Watcher 1 | . . . . . . . 1 Swarmer 8 | . 6 . . . . . 2 Grunt 19 | 1 3 . . . 3 8 4 Sentry 2 | . . . . . . 1 1 Hunter 2 | . . . . . . 1 1 Behemoth 1 | . . . . . . 1 . Best Kill Streak 3 | 1 3 . . . 2 2 2 Combat Bots Only 3 | 1 3 . . . 2 2 2 Max Kills in Single Turn 2 | 1 1 . . . 1 2 2 Gunslinging . | . . . . . . . . Exploded 2 | . . . . . . 2 . Melee . | . . . . . . . . Uniques/NPCs Destroyed . | . . . . . . . . Combat | -11 -10 -10 -10 -9 -8 -8 -8 -------- Run | Yrd Mat Min Exi Min Mat Gar Mat Hostile Shots Fired 349 | 6 44 . . 8 35 138 118 Missed 112 | 3 12 . . 4 9 51 33 Damage Taken 3592 | 31 316 . . 58 509 1453 1225 Core 660 | . 95 . . 15 13 228 309 Absorbed by Shields . | . . . . . . . . Redirected to Shielding 107 | . . . . . . . 107 Regen/Repaired (Parts) 22 | . 22 . . . . . . Core Remaining (%) 78 | 100 . . . 56 . . . Volleys Fired 121 | 5 24 . . 1 12 44 35 Largest 2 | 2 2 . . 2 2 2 2 Hottest 170 | 70 90 . . 80 80 170 115 Shots Fired 225 | 10 48 . . 2 21 83 61 Gun 215 | 10 48 . . 2 19 75 61 Cannon . | . . . . . . . . Launcher 10 | . . . . . 2 8 . Special . | . . . . . . . . Kinetic 77 | 5 . . . . . 46 26 Thermal 124 | 5 48 . . . 7 29 35 Explosive 10 | . . . . . 2 8 . Electromagnetic 14 | . . . . 2 12 . . Robot Hit Streak 13 | 5 13 . . 3 4 9 9 Robot Miss Streak 4 | 3 4 . . . 4 4 4 Penetration Max 1 | . . . . . . . 1 Secondary Targets 5 | . 1 . . . 1 2 1 Max Gunslinging Chain 1 | . 1 . . . 1 1 1 Shots Hit Robots 143 | 5 30 . . 2 12 53 41 Core Hits 76 | 2 12 . . 1 11 30 20 Critical Kills . | . . . . . . . . Critical Parts Destroyed . | . . . . . . . . Critical Strikes 9 | . . . . . . 4 5 Burn 9 | . . . . . . 4 5 Melee Attacks . | . . . . . . . . Impact . | . . . . . . . . Slashing . | . . . . . . . . Piercing . | . . . . . . . . Sneak Attacks . | . . . . . . . . Combat Hostiles . | . . . . . . . . Follow-up Attacks . | . . . . . . . . Damage Inflicted 3329 | 48 392 . . 24 287 1734 844 Guns 2454 | 48 378 . . 24 121 1039 844 Cannons . | . . . . . . . . Explosions 845 | . . . . . 166 679 . Melee . | . . . . . . . . Ramming 30 | . 14 . . . . 16 . Kinetic 1144 | 23 . . . . . 709 412 Thermal 1230 | 25 378 . . . 65 330 432 Explosive 845 | . . . . . 166 679 . Electromagnetic 80 | . . . . 24 56 . . Impact . | . . . . . . . . Slashing . | . . . . . . . . Piercing . | . . . . . . . . Highest Corruption . | . . . . . . . . Average Corruption . | . . . . . . . . Corruption Purged . | . . . . . . . . Corruption Blocked . | . . . . . . . . Overload Shots . | . . . . . . . . Overflow Damage 83 | . . . . . 72 11 . Projectiles . | . . . . . . . . Explosions 83 | . . . . . 72 11 . Melee . | . . . . . . . . Knockbacks . | . . . . . . . . Impact . | . . . . . . . . Kinetic . | . . . . . . . . Secondary . | . . . . . . . . Self-Inflicted Damage 179 | . . . . . 97 82 . Shots 6 | . . . . . 2 4 . Rammed . | . . . . . . . . Targets Rammed 7 | . 3 . . . . 4 . Kicked 7 | . 3 . . . . 4 . Crushed . | . . . . . . . . Highest Temperature 425 | 108 150 . . 27 127 425 294 Average Temperature 91 | 63 58 . . 15 43 117 101 Received Heat Transfer 1422 | 18 60 . . 27 243 516 558 Effects 3 | . . . . . . 3 . Shutdowns 1 | . . . . . . 1 . Energy Bleed 2 | . . . . . . 2 . Siege Activations . | . . . . . . . . Robots Corrupted . | . . . . . . . . Combat Hostiles . | . . . . . . . . Parts Fried . | . . . . . . . . Impact Corruptions . | . . . . . . . . Robots Melted 2 | . . . . . . 1 1 Combat Hostiles 2 | . . . . . . 1 1 Parts Melted 8 | . 2 . . . . 2 4 Heat Transferred 4168 | 74 969 . . . 150 1275 1700 Parts Sabotaged . | . . . . . . . . Parts Stolen . | . . . . . . . . Parts Stripped . | . . . . . . . . Power Chain Reactions . | . . . . . . . . Alert | -11 -10 -10 -10 -9 -8 -8 -8 ------- Run | Yrd Mat Min Exi Min Mat Gar Mat Peak Influence 446 | 20 278 42 . 15 71 446 402 Initial 217 | . 13 42 . . 5 39 217 Average 144 | 2 99 42 . . 46 184 270 Maximum Alert Level 2 | . 1 . . . . 2 2 Low Security (%) 66 | 100 94 100 . 100 100 60 . Level 1 31 | . 5 . . . . 38 95 Level 2 1 | . . . . . . 1 4 Level 3 . | . . . . . . . . Level 4 . | . . . . . . . . Level 5 . | . . . . . . . . High Security . | . . . . . . . . Max Security . | . . . . . . . . Squads Dispatched 7 | . 2 . . . 2 . 3 Investigation 4 | . 2 . . . 1 . 1 Extermination . | . . . . . . . . Reinforcement 3 | . . . . . 1 . 2 Assault . | . . . . . . . . Garrison . | . . . . . . . . Intercept . | . . . . . . . . Searches Triggered . | . . . . . . . . Construction Impeded . | . . . . . . . . Haulers Reinforced . | . . . . . . . . Active Scanning Responses . | . . . . . . . . Cargo Convoy Interrupts . | . . . . . . . . Stealth | -11 -10 -10 -10 -9 -8 -8 -8 --------- Run | Yrd Mat Min Exi Min Mat Gar Mat Distress Signals 4 | . 2 . . . . . 2 Communications Jammed . | . . . . . . . . Distress Signals . | . . . . . . . . Times Spotted 65 | 1 17 . . 2 7 17 21 Peak Tracking Total 10 | 1 4 . . 2 3 4 10 Tactical Retreats 12 | . . . . . 2 8 2 Traps | -11 -10 -10 -10 -9 -8 -8 -8 ------- Run | Yrd Mat Min Exi Min Mat Gar Mat Traps Triggered 8 | . 3 . . . . 5 . Indirectly . | . . . . . . . . Trap Hack Attempts . | . . . . . . . . Triggered . | . . . . . . . . Disarmed . | . . . . . . . . Reprogrammed . | . . . . . . . . Reused . | . . . . . . . . Traps Extracted . | . . . . . . . . Installed . | . . . . . . . . Triggered . | . . . . . . . . Machines | -11 -10 -10 -10 -9 -8 -8 -8 ---------- Run | Yrd Mat Min Exi Min Mat Gar Mat Machines Disabled 3 | . . . . . 1 . 2 Max in Single Turn 1 | . . . . . 1 . 1 Machines Repaired . | . . . . . . . . Machines Dismantled . | . . . . . . . . Machines Sabotaged . | . . . . . . . . Overloaded Fab Kills . | . . . . . . . . Hacking | -11 -10 -10 -10 -9 -8 -8 -8 --------- Run | Yrd Mat Min Exi Min Mat Gar Mat Machines Accessed 15 | . 5 . 4 . 2 3 1 Terminals 8 | . 3 . . . 1 3 1 Fabricators . | . . . . . . . . Repair Stations 1 | . 1 . . . . . . Recycling Units 1 | . 1 . . . . . . Scanalyzers . | . . . . . . . . Garrison Access 1 | . . . . . 1 . . Total Hacks 87 | . 21 . 49 . 5 9 3 Successful 70 | . 11 . 49 . 5 2 3 Failed 17 | . 10 . . . . 7 . Catastrophic 2 | . . . . . . 2 . Database Lockouts . | . . . . . . . . Manual . | . . . . . . . . Terminals 30 | . 14 . . . 4 9 3 Fabricators . | . . . . . . . . Repair Stations 3 | . 3 . . . . . . Recycling Units 4 | . 4 . . . . . . Scanalyzers . | . . . . . . . . Garrison Access 1 | . . . . . 1 . . Terminal Hacks 64 | . 6 . 49 . 4 2 3 Record 57 | . 2 . 49 . 4 . 2 Emergency Access Points 1 | . . . . . . 1 . Alert Level 1 | . . . . . . . 1 Dispatch Records 1 | . 1 . . . . . . Security Status 1 | . 1 . . . . . . Investigation Status 1 | . 1 . . . . . . Zone Layout 1 | . 1 . . . . . . Patrol Navigation 1 | . . . . . . 1 . Fabricator Hacks . | . . . . . . . . Repair Station Hacks 2 | . 2 . . . . . . Scan Component 1 | . 1 . . . . . . Repair 1 | . 1 . . . . . . Recycling Unit Hacks 3 | . 3 . . . . . . Recycle Component 1 | . 1 . . . . . . Report Inventory 1 | . 1 . . . . . . Retrieve Components 1 | . 1 . . . . . . Scanalyzer . | . . . . . . . . Garrison Access Hacks 1 | . . . . . 1 . . Unlock Access 1 | . . . . . 1 . . Unauthorized Hacks . | . . . . . . . . Terminals . | . . . . . . . . Fabricators . | . . . . . . . . Repair Stations . | . . . . . . . . Recycling Units . | . . . . . . . . Scanalyzers . | . . . . . . . . Garrison Access . | . . . . . . . . Data Cores Recovered . | . . . . . . . . Used . | . . . . . . . . Hacking Detections 10 | . 5 . . . 1 3 1 Full Trace Events 8 | . 4 . . . 1 2 1 Feedback Events . | . . . . . . . . Feedback Blocked . | . . . . . . . . Robot Schematics Acquired . | . . . . . . . . Robots Built . | . . . . . . . . Authchips . | . . . . . . . . Time . | . . . . . . . . Total Robot Build Rating . | . . . . . . . . Part Schematics Acquired . | . . . . . . . . Parts Built . | . . . . . . . . Authchips . | . . . . . . . . Time . | . . . . . . . . Total Part Build Rating . | . . . . . . . . Parts Repaired 1 | . 1 . . . . . . Time 26 | . 26 . . . . . . Parts Recycled 1 | . 1 . . . . . . Recycled Matter . | . . . . . . . . Retrieved Matter . | . . . . . . . . Retrieved Components 10 | . 10 . . . . . . Parts Scanalyzed . | . . . . . . . . Part Schematics Acquired . | . . . . . . . . Parts Damaged . | . . . . . . . . Bothacking | -11 -10 -10 -10 -9 -8 -8 -8 ------------ Run | Yrd Mat Min Exi Min Mat Gar Mat Used RIF Installer . | . . . . . . . . Robots Hacked . | . . . . . . . . Non-combat . | . . . . . . . . Combat . | . . . . . . . . Robot Hacks Applied . | . . . . . . . . Relay Couplers Released . | . . . . . . . . Fabnet Peak Effective % . | . . . . . . . . Robots Rewired . | . . . . . . . . Allies Hacked . | . . . . . . . . Hacks Repelled . | . . . . . . . . Allies | -11 -10 -10 -10 -9 -8 -8 -8 -------- Run | Yrd Mat Min Exi Min Mat Gar Mat Total Allies . | . . . . . . . . Largest Group . | . . . . . . . . Highest-Rated Group . | . . . . . . . . Highest-Rated Ally . | . . . . . . . . Total Orders . | . . . . . . . . Ally Attacks . | . . . . . . . . Total Damage . | . . . . . . . . Kills . | . . . . . . . . Allies Corrupted . | . . . . . . . . Allies Melted . | . . . . . . . . Intel | -11 -10 -10 -10 -9 -8 -8 -8 ------- Run | Yrd Mat Min Exi Min Mat Gar Mat Robot Analysis Total . | . . . . . . . . Derelict Logs Recovered . | . . . . . . . . Drone Launches . | . . . . . . . . Drone Recoveries . | . . . . . . . . Exploration | -11 -10 -10 -10 -9 -8 -8 -8 ------------- Run | Yrd Mat Min Exi Min Mat Gar Mat Turns Passed 4538 | 97 762 102 1259 184 337 1247 550 Spaces Moved 3287 | 77 504 82 1050 150 180 907 337 Core 29 | 24 . . . . . 2 3 Treads 36 | . . . . . . 36 . Legs 2975 | 5 447 82 1050 150 180 869 192 Wheels 105 | 48 57 . . . . . . Hover 142 | . . . . . . . 142 Flight . | . . . . . . . . Fastest Speed 50 | 50 80 120 120 120 110 105 90 Average Speed 114 | 73 119 120 120 120 117 111 105 Slowest Speed 200 | 120 190 120 120 120 120 200 120 Overloaded Moves . | . . . . . . . . Propulsion Burnouts . | . . . . . . . . Robots Hopped . | . . . . . . . . Cave-ins Triggered . | . . . . . . . . Exploration Rate (%) 38 | 6 62 20 93 33 13 50 33 Regions Visited 7 Branch Regions 3 Pre-discovered Areas 2 | . . 1 1 . . . . Known Exits Taken 1 | . . . . . 1 . . Unknown Exits Taken 5 | 1 1 1 1 1 . . . Scrap Searched . | . . . . . . . . Spaces Dug . | . . . . . . . . Terrain Destroyed 81 | . . . . . 58 19 4 Melee . | . . . . . . . . Projectile 5 | . . . . . . 1 4 AOE 76 | . . . . . 58 18 . Terrain Rammed . | . . . . . . . . Walls Destroyed . | . . . . . . . . Machines Disabled . | . . . . . . . . Actions | -11 -10 -10 -10 -9 -8 -8 -8 --------- Run | Yrd Mat Min Exi Min Mat Gar Mat Total 3832 | 108 617 85 1049 154 284 1054 481 Wait 171 | 8 17 4 . . 72 21 49 Move 3277 | 76 503 81 1049 149 179 903 337 Hop . | . . . . . . . . Pick Up 88 | 9 25 . . 2 9 27 16 Fast Attach 1 | . . . . . . . 1 Attach 51 | 7 10 . . . 11 14 9 Detach 9 | 2 1 . . . . . 6 Swap 53 | 1 17 . . . 1 21 13 Drop 45 | . 17 . . 2 . 11 15 Fire 121 | 5 24 . . 1 12 44 35 Melee . | . . . . . . . . Ram . | . . . . . . . . Kick 7 | . 3 . . . . 4 . Crush . | . . . . . . . . Escape Stasis 9 | . . . . . . 9 . Rewire . | . . . . . . . . Trap . | . . . . . . . . Miscellaneous . | . . . . . . . . Route ------- -11/Scrapyard -10/Materials (discovered 2 exits: [*Mat] / [*Min]) -10/Mines (discovered 2 exits: [*Mat] / *Exi) -10/Exiles (discovered 2 exits: [*Min x2]) -9/Mines -8/Materials -8/Garrison (discovered 2 exits: *Mat x2) -8/Materials History --------- Turn | Location | Event 2 | -11/Scrapyard | Met Revision 17 72 | -11/Scrapyard | Discovered new exit (range 8) 98 | -11/Scrapyard | Entered Materials 242 | -10/Materials | Discovered new exit (range 5) 306 | -10/Materials | Build established: Mutant 344 | -10/Materials | Discovered new exit (range 9) 372 | -10/Materials | Repaired Med. Laser? 860 | -10/Materials | Entered Mines 861 | -10/Mines | Learned location of Storage (-9) 893 | -10/Mines | Met a Derelict bent on vengeance 918 | -10/Mines | Discovered new exit (range 10) 956 | -10/Mines | Deemed a non-threat by the Exiles lab entrance 957 | -10/Mines | Discovered new exit (range 5) 962 | -10/Mines | Entered Exiles 983 | -10/Exiles | Discovered new exit (range 14) 1010 | -10/Exiles | Met 8R-AWN 1037 | -10/Exiles | Met EX-HEX 1096 | -10/Exiles | Met EX-DEC 1116 | -10/Exiles | Visited The Gauntlet 1288 | -10/Exiles | Learned location of Zion (-7) 1336 | -10/Exiles | Discovered new exit (range 12) 1498 | -10/Exiles | Met EX-BIN 1518 | -10/Exiles | Aligned with FarCom system 1519 | -10/Exiles | Given EX-Vault access code 2221 | -10/Exiles | Entered Mines 2255 | -9/Mines | Received a Rocket Launcher from a helpful Derelict 2340 | -9/Mines | Discovered new exit (range 15) 2400 | -9/Mines | Assembled infested the area 2405 | -9/Mines | Assisted by a Guerilla fighting off Assembled 2405 | -9/Mines | Entered Materials 2405 | -8/Materials | Evolved 4 slots: Power x1, Propulsion x2, Utility x1 2537 | -8/Materials | Lost 8 parts (1p3n1u3w) 2706 | -8/Materials | Identified exit to Garrison 2742 | -8/Materials | Entered Garrison 2906 | -8/Garrison | Triggered checkpoint 3015 | -8/Garrison | Spotted B-75 Beast 3052 | -8/Garrison | Destroyed B-75 Beast 3247 | -8/Garrison | Discovered new exit (range 8) 3256 | -8/Garrison | Attempted to access garrison exit controls, blocked by remote lockdown 3367 | -8/Garrison | Build established: Scavenger-Mutant 3442 | -8/Garrison | Lost 4 parts (2p2u) 3966 | -8/Garrison | Discovered new exit (range 15) 3989 | -8/Garrison | Entered Materials 4415 | -8/Materials | Core integrity fell below 50% 4492 | -8/Materials | Lost 3 parts (1p1u1w) 4523 | -8/Materials | Core integrity fell below 20% 4539 | -8/Materials | Destroyed by Y-45 Defender with Heavy Assault Rifle Last Messages --------------- Heavy class robot, which gives away their position but also has a chance to call more squads to reinforce the local area while you are within range. Material Processor disabled. Imp. Carbon-fiber Leg destroyed. Imp. Weapon Shielding destroyed. Lgt. Nuclear Core destroyed. Y-45 Defender suffers critical hit (Burn). Y-45 Defender heat damages Lgt. Treads. Critical hit (Burn: +37). Y-45 Defender critical meltdown. K-01 Serf cleans the Nuclear Reactor. R-06 Scavenger collects Imp. Ion Engine. Acquired 36 matter. K-01 Serf cleans the Nuclear Reactor. R-06 Scavenger collects Lgt. Treads. Thermic Laser destroyed. Imp. Heat Sink destroyed. [Achievement: First Step to Greatness] Map ----- +----------------------------------------------------+ | ?????????????????????????????????????????????????? | | ?????????????????????????????????????????????????? | | ?????????????????????????????????????????????????? | | ?????????????????????????????????????????????????? | | ?????????????????????????????????????????????????? | | ????????????????????????????###############??????? | | ??????????????????????? # #??????? | | ?????????????????????? # T #??????? | | ??????????????????????? """ # [ #??????? | | ????????????????????????# """ # #??????? | | ????????????????????????# """ # #??????? | | ????????????????????????# # #?????## | | ????????????????????????# ###+########## | | ????????????????????????# | | ????????????????????????# ] | | ????????????????????????# """ | | ????????????????????????# """"" ###/########## | | ????????????????????????# g """"" #! ???????## | | ????????????????????????# g""""" # ! #??????# | | ????????????????????????# "" # #??????# | | ????????????????????????# Y Y # " " #??????# | | ????????????????????????# g #] "R" #??????# | | ???????????????????????## g#### # """ #??????# | | ????????????????# ###### r #?# ############?## | | ????????????????# % #?# #??????""""" # | | ????????????????+ @ #?# #??????""""" # | | ????????????????# #?# #??????""""" + | | ????????????????####+### #?# #??????""""" # | | ???????????????????????#######?# #??????""""" # | | ???????????????????????????????# #?????? ?# | | ???????????????????????????????# #????? = ?# | | ???????????????????????????????# #???? !??# | | ???????????????????????????????# #????######??# | | ???????????????????????????????# #??????????### | | ???????????????????????????????#g #?????????+ | | ???????????????????????????????# g #??????????#### | | ???????????????????????????????# #?????????????# | | ???????????????????????????????# #?????????????? | | ???????????????????????????????# #?????????????? | | ???????????????????????????????# #?????????????? | | ???????????????????????????????# #?????????????? | | ???????????????????????????????# #?????????????? | | ??????????###################### #####/###### ? | | ??????????# / ? | | ??????????# #??????? | | ??????????# #??????? | | ??????????# ##########+###### #### #??????? | | ??????????# #??????# #?#= #???????????? | | ??????????# #??????# #?#==!!!!#???????????? | | ???????#### ######## #?#==! !!#???????????? | +----------------------------------------------------+ Best States ------------- Heat Dissipation 45 Energy Generation 23 Energy Capacity 350 Matter Stores 382 Matter Capacity 450 Sight Range 16 Robot Scan Range 14 Terrain Scan Density 85 ECM Strength 1 Additional Mass Support 9 Weapon Shielding 66 Phase Shifting 5 Evasion (%) 65 Targeting Accuracy 5 Recoil Reduction 2 Item Schematics ----------------- None Robot Schematics ------------------ None Fabricated ------------ Nothing Alien Tech Used ----------------- None Achievements -------------- Crack Shot First Step to Greatness It's Just You Librarian One Hack Too Far Part-time Mechanic Please Form A Line Tourist Uninvited Guest Challenges ------------ None Game ------ Seed LightningPhaseWarhead Manual? 0 Play Time 02:58:04 Cumulative 2.9 hours Start 2024.04.01 @ 20:37:23 End 2024.04.03 @ 18:18:34 Sessions 9 Manual Loads 0 Difficulty Rogue Special Mode None Game No. 1 Rogue 1 Adventurer 0 Explorer 0 Win Type - Total 0 Types 0/0/0/0/0/0/0/0/0 Lore% 9 Gallery% 3 Achievement% 3 Wizard Run 0 Options --------- Layout 1 ASCII 0 Keyboard 0 Movement Vi Keybinds 0 Fullscreen 1 Font 24/Terminus Map View 50x35 Zoom Use 91% Tactical HUD 0 Map Filters NONE Filters NONE Steam 1 RUN: 212a2758-9edf-48ca-bad6-f9749bd751f0